fUST/lending_fUST_20241111
["ID","MTS","AMOUNT","RATE_DAILY","PERIOD"]
[341854156,1731255053307,-771.09,0.00026301,2]
[341854157,1731255053317,-660.09,0.00026301,2]
[341854158,1731255053326,-1717.81,0.00026301,2]
[341854159,1731255053336,-500.0,0.00026301,2]
[341854160,1731255053344,-1566.13,0.00026301,2]
[341854161,1731255053354,-500.0,0.00026301,2]
[341854162,1731255053366,-2857.55,0.00026301,2]
[341854163,1731255053376,-1036.05,0.00026301,2]
[341854164,1731255053385,-1738.29,0.00026301,2]
[341854165,1731255053395,-754.87,0.00026301,2]
[341854166,1731255053404,-500.0,0.00026301,2]
[341854167,1731255053414,-500.0,0.00026301,2]
[341854168,1731255053423,-500.0,0.00026301,2]
[341854169,1731255053432,-235.95,0.00026301,2]
[341854170,1731255053441,-500.0,0.00026301,2]
[341854171,1731255053451,-500.0,0.00026301,2]
[341854172,1731255053460,-500.0,0.00026301,2]
[341854173,1731255053469,-3741.27,0.00026301,2]
[341854174,1731255053478,-1092.8,0.00026301,2]
[341854175,1731255053487,-773.96,0.00026301,2]
[341854176,1731255053497,-1257.34,0.00026301,2]
[341854177,1731255053506,-1292.24,0.00026301,2]
[341854178,1731255053515,-500.0,0.00026301,2]
[341854179,1731255053526,-2195.83,0.00026301,2]
[341854180,1731255053535,-120162.55022614,0.00026334,2]
[341854181,1731255053544,-151.0,0.00026334,7]
[341854182,1731255053553,-274.447492,0.00026334,7]
[341854183,1731255053562,-274.447492,0.00026334,7]
[341854184,1731255053571,-225.251945,0.00026334,7]
[341854185,1731255053581,-225.251945,0.00026334,7]
[341854186,1731255053590,-151.0,0.00026334,7]
[341854187,1731255053599,-251.883171,0.00026334,7]
[341854188,1731255053609,-151.768393,0.00026334,7]
[341854189,1731255053618,-251.883171,0.00026334,7]
[341854190,1731255053627,-151.0,0.00026334,3]
[341854191,1731255053636,-374.99876,0.00026334,7]
[341854192,1731255053646,-374.99876,0.00026334,7]
[341854193,1731255053743,-151.0,0.00026334,7]
[341854194,1731255053753,-151.0,0.00026334,7]
[341854195,1731255053762,-1167.687452,0.00026334,7]
[341854196,1731255053772,-201.280014,0.00026334,7]
[341854197,1731255053783,-1167.687452,0.00026334,7]
[341854198,1731255053792,-201.280014,0.00026334,7]
[341854199,1731255053802,-2622.72285528,0.00026337,2]
[341854200,1731255053811,-1000.0,0.00026342,2]
[341854201,1731255053821,-1000.0,0.00026342,2]
[341854202,1731255053830,-500.0,0.00026373,2]
[341854203,1731255053839,-500.0,0.00026373,2]
[341854204,1731255053848,-500.0,0.00026373,2]
[341854205,1731255053858,-547.84765503,0.00026373,2]
[341854206,1731255053867,-500.0,0.00026373,2]
[341854207,1731255053876,-500.0,0.00026373,2]
[341854208,1731255053886,-507.70940403,0.00026373,2]
[341854209,1731255053895,-500.0,0.00026373,2]
[341854210,1731255053904,-500.0,0.00026373,2]
[341854211,1731255053914,-500.0,0.00026373,2]
[341854212,1731255053923,-150.112233,0.000264,11]
[341854213,1731255053932,-158.87073836,0.00026507,7]
[341854214,1731255053942,-151.0,0.00026575,7]
[341854215,1731255053951,-500.0,0.00026575,2]
[341854216,1731255053960,-500.0,0.00026575,2]
[341854217,1731255053970,-500.0,0.00026575,2]
[341854218,1731255053979,-500.0,0.00026575,2]
[341854219,1731255053988,-500.0,0.00026575,2]
[341854220,1731255053998,-506.85,0.00026575,2]
[341854221,1731255054007,-500.0,0.00026575,2]
[341854222,1731255054017,-500.0,0.00026575,2]
[341854223,1731255054028,-536.89,0.00026575,2]
[341854224,1731255054037,-976.24,0.00026575,2]
[341854225,1731255054047,-500.0,0.00026575,2]
[341854226,1731255054057,-522.35,0.00026575,2]
[341854227,1731255054066,-500.0,0.00026575,2]
[341854228,1731255054076,-500.0,0.00026575,2]
[341854229,1731255054085,-615.8,0.00026575,2]
[341854230,1731255054094,-1904.11,0.00026575,2]
[341854231,1731255054103,-500.0,0.00026575,2]
[341854232,1731255054113,-500.0,0.00026575,2]
[341854233,1731255054122,-626.43,0.00026575,2]
[341854234,1731255054131,-500.0,0.00026575,2]
[341854235,1731255054140,-500.0,0.00026575,2]
[341854236,1731255054150,-191.783028,0.00026575,7]
[341854237,1731255054159,-500.0,0.00026575,2]
[341854238,1731255054168,-66.48438004,0.00026575,2]
[341854239,1731255054451,-596.13114663,0.00024557,2]
[341854240,1731255054461,-433.51561996,0.00026575,2]
[341854241,1731255054470,-714.67,0.00026575,2]
[341854242,1731255054480,-500.0,0.00026575,2]
[341854243,1731255054489,-158.56382902,0.00026575,2]
[341854244,1731255054498,-634.29,0.00026575,2]
[341854245,1731255054507,-624.9,0.00026575,2]
[341854246,1731255054517,-500.0,0.00026575,2]
[341854247,1731255054528,-500.0,0.00026575,2]
[341854248,1731255054537,-500.0,0.00026575,2]
[341854249,1731255054547,-500.0,0.00026575,2]
[341854250,1731255054556,-500.0,0.00026575,2]
[341854251,1731255054566,-151.0,0.00026575,7]
[341854252,1731255054576,-151.0,0.00026575,7]
[341854253,1731255054586,-500.0,0.00026575,2]
[341854254,1731255054595,-151.0,0.00026575,7]
[341854255,1731255054605,-500.0,0.00026575,2]
[341854256,1731255054614,-151.0,0.00026575,7]
[341854257,1731255054624,-2504.53,0.00026575,2]
[341854258,1731255054634,-319.4889341,0.00026575,2]
[341854259,1731255054644,-312.972925,0.00026575,7]
[341854260,1731255054655,-312.972925,0.00026575,7]
[341854261,1731255054666,-500.0,0.00026575,2]
[341854262,1731255054676,-766.46,0.00026575,2]
[341854263,1731255054685,-500.0,0.00026575,2]
[341854264,1731255054695,-762.85,0.00026575,2]
[341854265,1731255054704,-840.59,0.00026575,2]
[341854266,1731255054714,-500.0,0.00026575,2]
[341854267,1731255054724,-799.787152,0.00026575,7]
[341854268,1731255054734,-500.0,0.00026575,2]
[341854269,1731255054743,-581.65,0.00026575,2]
[341854270,1731255054755,-799.787152,0.00026575,7]
[341854271,1731255054764,-1106.59,0.00026575,2]
[341854272,1731255054776,-500.0,0.00026575,2]
[341854273,1731255054785,-524.23,0.00026575,2]
[341854274,1731255054795,-538.25843055,0.00026575,2]
[341854275,1731255054804,-774.18,0.00026575,2]
[341854276,1731255054814,-813.6,0.00026575,2]
[341854277,1731255054825,-529.42,0.00026575,2]
[341854278,1731255054835,-500.0,0.00026575,2]
[341854279,1731255054844,-407.788053,0.00026575,7]
[341854280,1731255054853,-724.59,0.00026575,2]
[341854281,1731255054862,-6522.97,0.00026575,2]
[341854282,1731255054872,-407.788053,0.00026575,7]
[341854283,1731255054881,-626.06,0.00026575,2]
[341854284,1731255054890,-500.0,0.00026575,2]
[341854285,1731255054899,-500.0,0.00026575,2]
[341854286,1731255054910,-500.0,0.00026575,2]
[341854287,1731255054919,-500.0,0.00026575,2]
[341854288,1731255054928,-915.15,0.00026575,2]
[341854289,1731255054937,-1306.25,0.00026575,2]
[341854290,1731255054946,-500.0,0.00026575,2]
[341854291,1731255054955,-836.348743,0.00026575,7]
[341854292,1731255054964,-500.0,0.00026575,2]
[341854293,1731255054974,-836.348743,0.00026575,7]
[341854294,1731255054983,-389.574555,0.00026575,7]
[341854295,1731255054992,-389.574555,0.00026575,7]
[341854296,1731255055002,-864.51,0.00026575,2]
[341854297,1731255055012,-500.0,0.00026575,2]
[341854298,1731255055021,-500.0,0.00026575,2]
[341854299,1731255055035,-500.0,0.00026575,2]
[341854300,1731255055044,-13833.7,0.00026575,2]
[341854301,1731255055053,-3402.329101,0.00026575,7]
[341854302,1731255055063,-500.0,0.00026575,2]
[341854303,1731255055072,-500.0,0.00026575,2]
[341854304,1731255055082,-3402.329101,0.00026575,7]
[341854305,1731255055091,-5140.64,0.00026575,2]
[341854306,1731255055100,-771.09,0.00026575,2]
[341854307,1731255055109,-660.09,0.00026575,2]
[341854308,1731255055118,-1717.81,0.00026575,2]
[341854309,1731255055127,-500.0,0.00026575,2]
[341854310,1731255055137,-1566.13,0.00026575,2]
[341854311,1731255055147,-500.0,0.00026575,2]
[341854312,1731255055156,-2857.55,0.00026575,2]
[341854313,1731255055165,-1036.05,0.00026575,2]
[341854314,1731255055175,-1738.29,0.00026575,2]
[341854315,1731255055279,-754.87,0.00026575,2]
[341854316,1731255055291,-500.0,0.00026575,2]
[341854317,1731255055300,-500.0,0.00026575,2]
[341854318,1731255055310,-502.29047231,0.00026575,2]
[341854319,1731255055319,-500.0,0.00026575,2]
[341854320,1731255055329,-500.0,0.00026575,2]
[341854321,1731255055338,-500.0,0.00026575,2]
[341854322,1731255055348,-3741.27,0.00026575,2]
[341854323,1731255055358,-1092.8,0.00026575,2]
[341854324,1731255055367,-773.96,0.00026575,2]
[341854325,1731255055378,-1257.34,0.00026575,2]
[341854326,1731255055387,-1292.24,0.00026575,2]
[341854327,1731255055396,-500.0,0.00026575,2]
[341854328,1731255055405,-2195.83,0.00026575,2]
[341854329,1731255055414,-2819.36,0.000266,14]
[341854330,1731255055423,-5363.72,0.000266,14]
[341854331,1731255055433,-940.14191497,0.00026642,2]
[341854332,1731255055442,-1000.0,0.00026642,2]
[341854333,1731255055451,-1517.99,0.000268,14]
[341854334,1731255055460,-500.0,0.00026849,2]
[341854335,1731255055469,-500.0,0.00026849,2]
[341854336,1731255055478,-500.0,0.00026849,2]
[341854337,1731255055488,-500.0,0.00026849,2]
[341854338,1731255055497,-500.0,0.00026849,2]
[341854339,1731255055506,-506.85,0.00026849,2]
[341854340,1731255055516,-500.0,0.00026849,2]
[341854341,1731255055527,-500.0,0.00026849,2]
[341854342,1731255055537,-536.89,0.00026849,2]
[341854343,1731255055546,-976.24,0.00026849,2]
[341854344,1731255055555,-151.0,0.00026849,7]
[341854345,1731255055564,-500.0,0.00026849,2]
[341854346,1731255055575,-522.35,0.00026849,2]
[341854347,1731255055584,-151.0,0.00026849,7]
[341854348,1731255055593,-500.0,0.00026849,2]
[341854349,1731255055603,-151.0,0.00026849,7]
[341854350,1731255055613,-151.0,0.00026849,7]
[341854351,1731255055622,-151.0,0.00026849,7]
[341854352,1731255055631,-500.0,0.00026849,2]
[341854353,1731255055640,-615.8,0.00026849,2]
[341854354,1731255055649,-1904.11,0.00026849,2]
[341854355,1731255055658,-500.0,0.00026849,2]
[341854356,1731255055667,-500.0,0.00026849,2]
[341854357,1731255055676,-626.43,0.00026849,2]
[341854358,1731255055687,-500.0,0.00026849,2]
[341854359,1731255055698,-500.0,0.00026849,2]
[341854360,1731255055710,-500.0,0.00026849,2]
[341854361,1731255055720,-500.0,0.00026849,2]
[341854362,1731255055731,-714.67,0.00026849,2]
[341854363,1731255055742,-500.0,0.00026849,2]
[341854364,1731255055751,-634.29,0.00026849,2]
[341854365,1731255055760,-624.9,0.00026849,2]
[341854366,1731255055769,-500.0,0.00026849,2]
[341854367,1731255055780,-180.62239355,0.00026849,2]
[341854368,1731255055789,-500.0,0.00026849,2]
[341854369,1731255055799,-1212.542474,0.00026849,7]
[341854370,1731255055808,-500.0,0.00026849,2]
[341854371,1731255055817,-1212.542474,0.00026849,7]
[341854372,1731255055826,-500.0,0.00026849,2]
[341854373,1731255055835,-500.0,0.00026849,2]
[341854374,1731255055844,-500.0,0.00026849,2]
[341854375,1731255055853,-1728.131404,0.00026849,7]
[341854376,1731255055863,-1728.131404,0.00026849,7]
[341854377,1731255055873,-2504.53,0.00026849,2]
[341854378,1731255055882,-500.0,0.00026849,2]
[341854379,1731255055891,-766.46,0.00026849,2]
[341854380,1731255055901,-500.0,0.00026849,2]
[341854381,1731255055911,-762.85,0.00026849,2]
[341854382,1731255055920,-840.59,0.00026849,2]
[341854383,1731255055929,-500.0,0.00026849,2]
[341854384,1731255055939,-500.0,0.00026849,2]
[341854385,1731255055948,-581.65,0.00026849,2]
[341854386,1731255055957,-1106.59,0.00026849,2]
[341854387,1731255055966,-500.0,0.00026849,2]
[341854388,1731255055975,-524.23,0.00026849,2]
[341854389,1731255055985,-774.18,0.00026849,2]
[341854390,1731255055997,-813.6,0.00026849,2]
[341854391,1731255056007,-529.42,0.00026849,2]
[341854392,1731255056016,-500.0,0.00026849,2]
[341854393,1731255056028,-724.59,0.00026849,2]
[341854394,1731255056048,-6522.97,0.00026849,2]
[341854395,1731255056064,-626.06,0.00026849,2]
[341854396,1731255056078,-500.0,0.00026849,2]
[341854397,1731255056094,-635.9,0.00026849,2]
[341854398,1731255056110,-500.0,0.00026849,2]
[341854399,1731255056126,-504.27040462,0.00026849,2]
[341854400,1731255056144,-500.0,0.00026849,2]
[341854401,1731255056160,-915.15,0.00026849,2]
[341854402,1731255056177,-1306.25,0.00026849,2]
[341854403,1731255056190,-500.0,0.00026849,2]
[341854404,1731255056203,-500.0,0.00026849,2]
[341854405,1731255056216,-864.51,0.00026849,2]
[341854406,1731255056233,-164.97762629,0.00026849,2]
[341854407,1731255056248,-500.0,0.00026849,2]
[341854408,1731255056264,-13833.7,0.00026849,2]
[341854409,1731255056285,-500.0,0.00026849,2]
[341854410,1731255056295,-500.0,0.00026849,2]
[341854411,1731255056309,-500.0,0.00026849,2]
[341854412,1731255056327,-5140.64,0.00026849,2]
[341854413,1731255056339,-771.09,0.00026849,2]
[341854414,1731255056354,-660.09,0.00026849,2]
[341854415,1731255056368,-1717.81,0.00026849,2]
[341854416,1731255056380,-571.4276228,0.00026849,2]
[341854417,1731255056393,-1566.13,0.00026849,2]
[341854418,1731255056405,-500.0,0.00026849,2]
[341854419,1731255056419,-2857.55,0.00026849,2]
[341854420,1731255056432,-1036.05,0.00026849,2]
[341854421,1731255056445,-1738.29,0.00026849,2]
[341854422,1731255056458,-754.87,0.00026849,2]
[341854423,1731255056471,-500.0,0.00026849,2]
[341854424,1731255056483,-500.0,0.00026849,2]
[341854425,1731255056496,-500.0,0.00026849,2]
[341854426,1731255056509,-500.0,0.00026849,2]
[341854427,1731255056521,-500.0,0.00026849,2]
[341854428,1731255056537,-3741.27,0.00026849,2]
[341854429,1731255056549,-159.84721872,0.00026849,2]
[341854430,1731255056567,-932.95278128,0.00026849,2]
[341854431,1731255056580,-773.96,0.00026849,2]
[341854432,1731255056593,-1257.34,0.00026849,2]
[341854433,1731255056605,-1292.24,0.00026849,2]
[341854434,1731255056617,-500.0,0.00026849,2]
[341854435,1731255056630,-2195.83,0.00026849,2]
[341854436,1731255056643,-500.0,0.00026873,2]
[341854437,1731255056656,-500.0,0.00026873,2]
[341854438,1731255056670,-587.0,0.00026876,2]
[341854439,1731255056683,-37978.26163018,0.000269,2]
[341854440,1731255056818,-2462.93897128,0.00023798,2]
[341854441,1731255056831,-537.06102872,0.00023798,2]
[341854442,1731255056841,-596.13114661,0.000249,2]
[341854443,1731255056851,-304588.07963402,0.000269,2]
[341854444,1731255056860,-286.580115,0.000269,7]
[341854445,1731255056870,-286.580115,0.000269,7]
[341854446,1731255056879,-151.0,0.000269,7]
[341854447,1731255056888,-151.0,0.000269,7]
[341854448,1731255056897,-151.0,0.000269,7]
[341854449,1731255056907,-151.0,0.000269,7]
[341854450,1731255056916,-157.40441,0.000269,7]
[341854451,1731255056926,-255.409528,0.000269,7]
[341854452,1731255056935,-182.777689,0.000269,7]
[341854453,1731255056945,-274.447492,0.000269,7]
[341854454,1731255056954,-274.447492,0.000269,7]
[341854455,1731255056964,-225.251945,0.000269,7]
[341854456,1731255056973,-225.251945,0.000269,7]
[341854457,1731255056983,-1545.81,0.000269,14]
[341854458,1731255056992,-406.21717,0.000269,7]
[341854459,1731255057002,-406.21717,0.000269,7]
[341854460,1731255057011,-151.0,0.000269,7]
[341854461,1731255057198,-968.32367,0.000269,7]
[341854462,1731255057238,-205.236268,0.000269,7]
[341854463,1731255057254,-968.32367,0.000269,7]
[341854464,1731255057264,-205.236268,0.000269,7]
[341854465,1731255057274,-151.0,0.000269,7]
[341854466,1731255057291,-151.0,0.000269,7]
[341854467,1731255057300,-151.0,0.000269,7]
[341854468,1731255057309,-151.0,0.000269,7]
[341854469,1731255057319,-151.0,0.000269,7]
[341854470,1731255057328,-151.0,0.000269,7]
[341854471,1731255057338,-2148.831334,0.000269,7]
[341854472,1731255057347,-917.924886,0.000269,7]
[341854473,1731255057357,-917.924886,0.000269,7]
[341854474,1731255057368,-151.0,0.000269,7]
[341854475,1731255057379,-2448.391712,0.000269,7]
[341854476,1731255057388,-2448.391712,0.000269,7]
[341854477,1731255057398,-1212.542474,0.000269,7]
[341854478,1731255057408,-1212.542474,0.000269,7]
[341854479,1731255057417,-275.968898,0.000269,2]
[341854480,1731255057426,-275.968898,0.000269,2]
[341854481,1731255057436,-152.755083,0.000269,7]
[341854482,1731255057446,-151.0,0.000269,7]
[341854483,1731255057456,-151.0,0.000269,7]
[341854484,1731255057466,-151.0,0.000269,7]
[341854485,1731255057475,-1728.131404,0.000269,7]
[341854486,1731255057484,-1728.131404,0.000269,7]
[341854487,1731255057494,-312.972925,0.000269,7]
[341854488,1731255057503,-312.972925,0.000269,7]
[341854489,1731255057513,-799.787152,0.000269,7]
[341854490,1731255057523,-799.787152,0.000269,7]
[341854491,1731255057535,-151.0,0.000269,7]
[341854492,1731255057545,-407.788053,0.000269,7]
[341854493,1731255057554,-407.788053,0.000269,7]
[341854494,1731255057563,-836.348743,0.000269,7]
[341854495,1731255057573,-251.883171,0.000269,7]
[341854496,1731255057583,-836.348743,0.000269,7]
[341854497,1731255057592,-251.883171,0.000269,7]
[341854498,1731255057602,-389.574555,0.000269,7]
[341854499,1731255057611,-263.774245,0.000269,3]
[341854500,1731255057620,-389.574555,0.000269,7]
[341854501,1731255057629,-3402.329101,0.000269,7]
[341854502,1731255057639,-3402.329101,0.000269,7]
[341854503,1731255057648,-374.99876,0.000269,7]
[341854504,1731255057657,-374.99876,0.000269,7]
[341854505,1731255057667,-151.0,0.000269,7]
[341854506,1731255057676,-151.0,0.000269,7]
[341854507,1731255057685,-1167.687452,0.000269,7]
[341854508,1731255057695,-201.280014,0.000269,7]
[341854509,1731255057704,-1167.687452,0.000269,7]
[341854510,1731255057713,-201.280014,0.000269,7]
[341854511,1731255057722,-1688.56201519,0.00027,2]
[341854512,1731255057732,-150.112235,0.00027,11]
[341854513,1731255057741,-2622.72285528,0.00027091,2]
[341854514,1731255057750,-151.0,0.00027123,7]
[341854515,1731255057759,-286.580115,0.00027123,7]
[341854516,1731255057768,-286.580115,0.00027123,7]
[341854517,1731255057780,-151.0,0.00027123,7]
[341854518,1731255057789,-151.0,0.00027123,7]
[341854519,1731255057798,-297.746624,0.00027123,7]
[341854520,1731255057807,-151.0,0.00027123,7]
[341854521,1731255057816,-500.0,0.00027123,2]
[341854522,1731255057826,-500.0,0.00027123,2]
[341854523,1731255057836,-500.0,0.00027123,2]
[341854524,1731255057845,-500.0,0.00027123,2]
[341854525,1731255057854,-369.82773427,0.00027123,2]
[341854526,1731255057863,-506.85,0.00027123,2]
[341854527,1731255057873,-500.0,0.00027123,2]
[341854528,1731255057882,-500.0,0.00027123,2]
[341854529,1731255057891,-536.89,0.00027123,2]
[341854530,1731255057901,-976.24,0.00027123,2]
[341854531,1731255057910,-500.0,0.00027123,2]
[341854532,1731255057919,-522.35,0.00027123,2]
[341854533,1731255057930,-500.0,0.00027123,2]
[341854534,1731255057940,-500.0,0.00027123,2]
[341854535,1731255057949,-615.8,0.00027123,2]
[341854536,1731255057958,-1904.11,0.00027123,2]
[341854537,1731255057967,-500.0,0.00027123,2]
[341854538,1731255057976,-500.0,0.00027123,2]
[341854539,1731255057986,-626.43,0.00027123,2]
[341854540,1731255057996,-500.0,0.00027123,2]
[341854541,1731255058005,-500.0,0.00027123,2]
[341854542,1731255058016,-500.0,0.00027123,2]
[341854543,1731255058025,-500.0,0.00027123,2]
[341854544,1731255058037,-714.67,0.00027123,2]
[341854545,1731255058046,-500.0,0.00027123,2]
[341854546,1731255058055,-634.29,0.00027123,2]
[341854547,1731255058064,-624.9,0.00027123,2]
[341854548,1731255058074,-430.27786186,0.00027123,2]
[341854549,1731255058083,-500.0,0.00027123,2]
[341854550,1731255058092,-500.0,0.00027123,2]
[341854551,1731255058101,-500.0,0.00027123,2]
[341854552,1731255058111,-500.0,0.00027123,2]
[341854553,1731255058120,-500.0,0.00027123,2]
[341854554,1731255058130,-2504.53,0.00027123,2]
[341854555,1731255058140,-500.0,0.00027123,2]
[341854556,1731255058149,-766.46,0.00027123,2]
[341854557,1731255058159,-500.0,0.00027123,2]
[341854558,1731255058168,-762.85,0.00027123,2]
[341854559,1731255058177,-840.59,0.00027123,2]
[341854560,1731255058186,-500.0,0.00027123,2]
[341854561,1731255058196,-500.0,0.00027123,2]
[341854562,1731255058206,-581.65,0.00027123,2]
[341854563,1731255058216,-1106.59,0.00027123,2]
[341854564,1731255058225,-500.0,0.00027123,2]
[341854565,1731255058234,-524.23,0.00027123,2]
[341854566,1731255058243,-774.18,0.00027123,2]
[341854567,1731255058252,-813.6,0.00027123,2]
[341854568,1731255058263,-529.42,0.00027123,2]
[341854569,1731255058272,-500.0,0.00027123,2]
[341854570,1731255058288,-724.59,0.00027123,2]
[341854571,1731255058298,-5517.62032087,0.00027123,2]
[341854572,1731255058311,-296.89717546,0.00027123,2]
[341854573,1731255076470,500.0,0.00027,60]
[341854574,1731255117954,500.0,0.00027,60]
[341854579,1731255433686,3064.44993573,0.00020844,2]
[341854580,1731255444460,-3500.26431024,0.00021228,2]
[341854581,1731255453222,520.83333333,0.00021243,2]
[341854582,1731255515715,520.83333333,0.00021228,2]
[341854584,1731255579296,458.0690231,0.00021228,2]
[341854587,1731255732893,164.158019,0.00013973,2]
[341854603,1731256050534,-520.83333333,0.00020959,2]
[341854604,1731256050557,-166.666666,0.00021918,2]
[341854605,1731256050577,-156.83689686,0.00022424,2]
[341854606,1731256050598,-166.666666,0.00022431,2]
[341854607,1731256050617,-174.39832,0.00022474,2]
[341854608,1731256050642,-178.650925,0.00022748,2]
[341854609,1731256050662,-300.0,0.00022802,2]
[341854610,1731256050684,-300.0,0.00022802,2]
[341854611,1731256050713,-6458.94719281,0.00022803,2]
[341854628,1731256229191,-520.83333333,0.00021977,2]
[341854629,1731256229226,-3494.88105219,0.00021982,2]
[341854631,1731256230352,739.516021,0.00021685,2]
[341854721,1731256234996,-160.26922661,0.00022404,2]
[341854722,1731256235006,-176.8433634,0.00022503,2]
[341854767,1731256238090,-123.1566366,0.00022503,2]
[341854769,1731256238099,-550.70266186,0.00022504,2]
[341854775,1731256238148,-6637.57754964,0.00022504,2]
[341854777,1731256238158,-329.6403749,0.00022504,2]
[341854779,1731256238167,-17577.9506037,0.00022748,2]
[341854781,1731256238180,-160.26922661,0.00022751,2]
[341854783,1731256238189,-878.41352777,0.00022803,2]
[341854785,1731256238199,-18441.05280719,0.00022803,2]
[341854787,1731256238208,-3000.0,0.00022851,2]
[341854789,1731256238217,-166.666666,0.00022944,2]
[341854790,1731256238226,-761.548959,0.00022979,2]
[341854791,1731256238235,-166.666666,0.00023456,2]
[341854792,1731256238244,-170.764799,0.0002366,2]
[341854793,1731256238254,-761.548959,0.00023664,2]
[341854794,1731256238263,-170.764799,0.00023672,2]
[341854795,1731256238272,-170.764799,0.00023684,2]
[341854796,1731256238281,-170.764799,0.00023696,2]
[341854797,1731256238291,-170.764799,0.00023707,2]
[341854799,1731256238300,-170.764799,0.00023719,2]
[341854801,1731256238310,-170.764799,0.00023731,2]
[341854802,1731256238319,-170.764799,0.00023743,2]
[341854804,1731256238329,-170.764799,0.00023755,2]
[341854805,1731256238338,-170.764799,0.00023767,2]
[341854806,1731256238347,-170.764799,0.00023779,2]
[341854807,1731256238356,-166.666666,0.00023969,2]
[341854808,1731256238366,-761.548959,0.00024349,2]
[341854809,1731256238375,-166.666666,0.00024482,2]
[341854810,1731256238384,-920.02747671,0.00024557,2]
[341854811,1731256238393,-529.45,0.00024647,3]
[341854812,1731256238402,-264.72,0.00024647,3]
[341854813,1731256238411,-794.19,0.00024647,3]
[341854814,1731256238420,-500.0,0.00024657,2]
[341854815,1731256238432,-510.55404762,0.00024657,2]
[341854816,1731256238442,-500.0,0.00024657,2]
[341854817,1731256238451,-500.0,0.00024657,2]
[341854818,1731256238460,-500.0,0.00024657,2]
[341854819,1731256238470,-500.0,0.00024657,2]
[341854820,1731256238480,-500.0,0.00024657,2]
[341854821,1731256238489,-530.26643491,0.00024657,2]
[341854822,1731256238498,-336.81457917,0.00024657,2]
[341854823,1731256238507,-500.0,0.00024657,2]
[341854824,1731256238517,-500.0,0.00024657,2]
[341854825,1731256238527,-500.0,0.00024657,2]
[341854826,1731256238537,-500.0,0.00024657,2]
[341854827,1731256238546,-500.0,0.00024657,2]
[341854828,1731256238556,-500.0,0.00024657,2]
[341854829,1731256238565,-500.0,0.00024657,2]
[341854830,1731256238575,-500.0,0.00024657,2]
[341854831,1731256238585,-500.0,0.00024657,2]
[341854832,1731256238594,-500.0,0.00024657,2]
[341854833,1731256238604,-500.0,0.00024657,2]
[341854834,1731256238613,-500.0,0.00024657,2]
[341854835,1731256238622,-500.0,0.00024657,2]
[341854836,1731256238632,-500.0,0.00024657,2]
[341854837,1731256238642,-516.8128178,0.00024657,2]
[341854838,1731256238651,-151.11217723,0.00024657,2]
[341854839,1731256238661,-500.0,0.00024657,2]
[341854840,1731256238670,-500.0,0.00024657,2]
[341854841,1731256238683,-500.0,0.00024657,2]
[341854842,1731256238696,-500.0,0.00024657,2]
[341854843,1731256238706,-538.98563426,0.00024657,2]